[Event "Vienna Chess Open 2019"]
[Site "Vienna"]
[Date "2019.08.24"]
[Round "9.1"]
[White "Valsecchi, Alessio"]
[Black "Bick, Gabriel"]
[Result "1-0"]
[ECO "C78"]
[WhiteElo "2494"]
[BlackElo "2375"]
[Annotator "ChessBase"]
[PlyCount "134"]
[EventDate "2019.08.17"]
[EventType "swiss"]
[EventCountry "AUT"]
[SourceTitle "playchess.com"]
[Source "ChessBase"]
[SourceQuality "1"]
[TimeControl "40/5400+30:1800+30"]

1. e4 {[%emt 0:00:00]} e5 {[%emt 0:00:00]} 2. Nf3 {[%emt 0:00:00]} Nc6 {[%emt 0:00:00]} 3. Bb5 {[%emt 0:00:00]} a6 {[%emt 0:00:00]} 4. Ba4 {[%emt 0:00:00]} Nf6 {[%emt 0:00:00]} 5. O-O {[%emt 0:00:05]} Bc5 {[%emt 0:00:04]} 6. c3 {[%emt 0:00:33]} b5 {[%emt 0:00:08]} 7. Bb3 {[%emt 0:00:14]} d6 {[%emt 0:00:09]} 8. a4 {[%emt 0:00:16]} Rb8 {[%emt 0:00:09]} 9. d4 {[%emt 0:00:25]} Bb6 {[%emt 0:00:08]} 10. a5 {[%emt 0:00:39]} Ba7 {[%emt 0:00:08]} 11. Be3 {[%emt 0:00:39]} Bg4 {[%emt 0:00:11]} 12. Nbd2 {[%emt 0:01:19]} exd4 {[%emt 0:03:40]} 13. cxd4 {[%emt 0:02:05]} O-O {[%emt 0:00:20]} 14. h3 {[%emt 0:09:56]} Bh5 {[%emt 0:00:48]} 15. Qc2 {[%emt 0:07:20]} Nb4 {[%emt 0:01:12]} 16. Qc3 {[%emt 0:04:42]} c5 {[%emt 0:00:16]} 17. Bg5 {[%emt 0:01:04]} h6 {[%emt 0:03:33]} 18. Bxf6 {[%emt 0:18:02]} Qxf6 {[%emt 0:00:14]} 19. e5 {[%emt 0:00:06]} Qe7 {[%emt 0:13:59]} 20. Rfe1 {[%emt 0:07:54]} cxd4 {[%emt 0:01:35]} 21. Nxd4 {[%emt 0:00:36]} dxe5 {[%emt 0:01:02]} 22. Nf5 {[%emt 0:01:18]} Qc5 {[%emt 0:28:23]} 23. Rxe5 {[%emt 0:07:49]} Qxc3 {[%emt 0:05:56]} 24. Ne7+ {[%emt 0:00:33]} Kh8 {[%emt 0:02:14]} 25. bxc3 {[%emt 0:00:04]} Bxf2+ {[%emt 0:02:23]} 26. Kf1 {[%emt 0:02:28]} Bg6 {[%emt 0:00:26]} 27. Nf3 {[%emt 0:02:58]} Nd3 {[%emt 0:09:54]} 28. Rd5 {[%emt 0:01:10]} Nc5 {[%emt 0:11:31]} 29. Nxg6+ {[%emt 0:05:27]} fxg6 {[%emt 0:00:02]} 30. Bc2 {[%emt 0:00:42]} Be3 {[%emt 0:01:19]} 31. Re1 {[%emt 0:00:18]} Rbe8 {[%emt 0:00:36]} 32. Bxg6 {[%emt 0:02:59]} Re7 {[%emt 0:00:24]} 33. Rxe3 {[%emt 0:03:49]} Rxe3 {[%emt 0:00:03]} 34. Rxc5 {[%emt 0:00:07]} Re6 {[%emt 0:00:16]} 35. Bf5 {[%emt 0:00:43]} Ref6 {[%emt 0:03:09]} 36. Bc2 {[%emt 0:01:54]} Re8 {[%emt 0:01:54]} 37. Kg1 {[%emt 0:01:07]} Kg8 {[%emt 0:02:43]} 38. Ne5 {[%emt 0:01:35]} Rd8 {[%emt 0:01:01]} 39. Nc6 {[%emt 0:03:29]} Re8 {[%emt 0:02:54]} 40. Nb4 {[%emt 0:01:53]} Re1+ {[%emt 0:01:48]} 41. Kh2 {[%emt 0:30:55]} Ra1 {[%emt 0:33:04]} 42. Rc8+ {[%emt 0:01:50]} Kf7 {[%emt 0:00:19]} 43. Rc7+ {[%emt 0:00:41]} Kf8 {[%emt 0:01:19]} 44. Bb3 {[%emt 0:06:38]} g6 {[%emt 0:00:57]} 45. Nc6 {[%emt 0:04:40]} Ra3 {[%emt 0:00:00]} 46. Rc8+ {[%emt 0:00:00]} Kg7 {[%emt 0:00:00]} 47. Nd4 {[%emt 0:00:00]} Rd6 {[%emt 0:00:00]} 48. Rc7+ {[%emt 0:00:00]} Kf6 {[%emt 0:00:00]} 49. h4 {[%emt 0:00:00]} Ke5 {[%emt 0:00:00]} 50. Re7+ {[%emt 0:00:00]} Kf6 {[%emt 0:00:00]} 51. Rf7+ {[%emt 0:00:00]} Ke5 {[%emt 0:00:00]} 52. h5 {[%emt 0:00:00]} gxh5 {[%emt 0:00:00]} 53. Rf5+ {[%emt 0:00:00]} Ke4 {[%emt 0:00:00]} 54. Bc2+ {[%emt 0:00:00]} Ke3 {[%emt 0:00:00]} 55. Rf3+ {[%emt 0:00:00]} Kd2 {[%emt 0:00:00]} 56. Rd3+ {[%emt 0:00:00]} Kc1 {[%emt 0:00:02]} 57. Ne2+ {[%emt 0:00:00]} Kxc2 {[%emt 0:00:09]} 58. Rxd6 {[%emt 0:00:00]} Rxa5 {[%emt 0:00:19]} 59. Kg3 {[%emt 0:00:00]} Ra1 {[%emt 0:01:24]} 60. Rxh6 {[%emt 0:00:00]} a5 {[%emt 0:01:02]} 61. Rxh5 {[%emt 0:00:00]} a4 {[%emt 0:01:58]} 62. Nd4+ {[%emt 0:00:00]} Kxc3 {[%emt 0:00:03]} 63. Nxb5+ {[%emt 0:00:00]} Kc4 {[%emt 0:02:21]} 64. Kf3 {[%emt 0:00:00]} Rd1 {[%emt 0:01:52]} 65. g4 {[%emt 0:00:33]} Rg1 {[%emt 0:02:03]} 66. Re5 {[%emt 0:01:16]} Kb4 {[%emt 0:00:51]} 67. g5 {[%emt 0:01:37]} Rc1 {[%emt 0:00:31]} 1-0

[Event "Vienna Chess Open 2019"]
[Site "Vienna"]
[Date "2019.08.24"]
[Round "9.1"]
[White "Kojima, Shinya"]
[Black "Suta, Andraz"]
[Result "1-0"]
[ECO "D37"]
[WhiteElo "2390"]
[BlackElo "2268"]
[Annotator "ChessBase"]
[PlyCount "73"]
[EventDate "2019.08.17"]
[EventType "swiss"]
[EventCountry "AUT"]
[SourceTitle "playchess.com"]
[Source "ChessBase"]
[SourceQuality "1"]
[TimeControl "40/5400+30:1800+30"]

1. Nf3 {[%emt 0:00:00]} d5 {[%emt 0:06:35]} 2. d4 {[%emt 0:00:00]} Nf6 {[%emt 0:00:06]} 3. c4 {[%emt 0:00:00]} e6 {[%emt 0:00:05]} 4. Nc3 {[%emt 0:00:00]} Be7 {[%emt 0:00:05]} 5. Bf4 {[%emt 0:00:00]} O-O {[%emt 0:00:17]} 6. e3 {[%emt 0:00:00]} Nbd7 {[%emt 0:00:10]} 7. a3 {[%emt 0:00:13]} c5 {[%emt 0:02:14]} 8. cxd5 {[%emt 0:00:07]} exd5 {[%emt 0:01:12]} 9. dxc5 {[%emt 0:03:00]} Nxc5 {[%emt 0:00:28]} 10. Be2 {[%emt 0:02:19]} Be6 {[%emt 0:11:01]} 11. O-O {[%emt 0:01:40]} Rc8 {[%emt 0:00:15]} 12. Rc1 {[%emt 0:01:17]} Nfe4 {[%emt 0:13:06]} 13. Be5 {[%emt 0:04:07]} Bf6 {[%emt 0:04:37]} 14. Bxf6 {[%emt 0:06:48]} Qxf6 {[%emt 0:03:00]} 15. Nd4 {[%emt 0:06:17]} Nxc3 {[%emt 0:17:30]} 16. Rxc3 {[%emt 0:00:17]} Ne4 {[%emt 0:00:31]} 17. Rxc8 {[%emt 0:01:45]} Rxc8 {[%emt 0:00:40]} 18. Bd3 {[%emt 0:01:04]} Nd6 {[%emt 0:08:50]} 19. Qb1 {[%emt 0:02:56]} g6 {[%emt 0:00:44]} 20. Rd1 {[%emt 0:05:03]} Bg4 {[%emt 0:12:48]} 21. Rd2 {[%emt 0:06:22]} Qd8 {[%emt 0:01:12]} 22. h3 {[%emt 0:01:42]} Bd7 {[%emt 0:00:05]} 23. Ne2 {[%emt 0:01:08]} Rc5 {[%emt 0:05:40]} 24. Nf4 {[%emt 0:09:41]} Qc8 {[%emt 0:01:33]} 25. Rc2 {[%emt 0:02:37]} Rxc2 {[%emt 0:00:12]} 26. Bxc2 {[%emt 0:00:46]} Be6 {[%emt 0:03:21]} 27. Qd1 {[%emt 0:02:52]} Qc5 {[%emt 0:01:40]} 28. Bb3 {[%emt 0:02:21]} Nc4 {[%emt 0:01:59]} 29. Qc2 {[%emt 0:02:16]} Qb6 {[%emt 0:01:09]} 30. Qc3 {[%emt 0:04:09]} Qd6 {[%emt 0:01:59]} 31. Qf6 {[%emt 0:04:20]} b5 {[%emt 0:00:11]} 32. h4 {[%emt 0:02:32]} Qc6 {[%emt 0:00:47]} 33. Bxc4 {[%emt 0:02:37]} dxc4 {[%emt 0:01:42]} 34. h5 {[%emt 0:00:56]} Bd7 {[%emt 0:00:34]} 35. Qd4 {[%emt 0:01:04]} gxh5 {[%emt 0:00:15]} 36. Nd5 {[%emt 0:01:09]} Kf8 {[%emt 0:00:56]} 37. Qh8# {[%emt 0:00:08]} 1-0

[Event "Vienna Chess Open 2019"]
[Site "Vienna"]
[Date "2019.08.24"]
[Round "9.1"]
[White "Tuncer, Tuna"]
[Black "Dastan, Muhammed Batuhan"]
[Result "0-1"]
[ECO "C52"]
[WhiteElo "2362"]
[BlackElo "2582"]
[Annotator "ChessBase"]
[PlyCount "72"]
[EventDate "2019.08.17"]
[EventType "swiss"]
[EventCountry "AUT"]
[SourceTitle "playchess.com"]
[Source "ChessBase"]
[SourceQuality "1"]
[TimeControl "40/5400+30:1800+30"]

1. e4 {[%emt 0:00:00]} e5 {[%emt 0:00:00]} 2. Nf3 {[%emt 0:00:00]} Nc6 {[%emt 0:00:00]} 3. Bc4 {[%emt 0:00:45]} Bc5 {[%emt 0:00:00]} 4. b4 {[%emt 0:02:23]} Bxb4 {[%emt 0:00:15]} 5. c3 {[%emt 0:00:09]} Ba5 {[%emt 0:00:24]} 6. d4 {[%emt 0:00:14]} d6 {[%emt 0:01:03]} 7. Qb3 {[%emt 0:00:18]} Qd7 {[%emt 0:00:11]} 8. O-O {[%emt 0:00:13]} Bb6 {[%emt 0:02:34]} 9. Nbd2 {[%emt 0:00:15]} Qe7 {[%emt 0:21:00]} 10. Ba3 {[%emt 0:14:51]} Qf6 {[%emt 0:11:17]} 11. Bb5 {[%emt 0:10:53]} Bd7 {[%emt 0:02:23]} 12. Nc4 {[%emt 0:13:38]} Nh6 {[%emt 0:03:18]} 13. Ne3 {[%emt 0:13:16]} exd4 {[%emt 0:03:18]} 14. cxd4 {[%emt 0:02:00]} O-O {[%emt 0:06:38]} 15. Bb2 {[%emt 0:07:53]} Na5 {[%emt 0:06:01]} 16. Qd3 {[%emt 0:00:26]} Bxb5 {[%emt 0:02:08]} 17. Qxb5 {[%emt 0:00:04]} Qg6 {[%emt 0:00:16]} 18. Bc3 {[%emt 0:12:15]} Nc6 {[%emt 0:00:17]} 19. Qb2 {[%emt 0:01:37]} Qxe4 {[%emt 0:02:25]} 20. d5 {[%emt 0:01:21]} Ne5 {[%emt 0:00:07]} 21. Nxe5 {[%emt 0:01:36]} dxe5 {[%emt 0:00:07]} 22. Rfe1 {[%emt 0:01:41]} Rfe8 {[%emt 0:02:29]} 23. Rad1 {[%emt 0:00:45]} Rad8 {[%emt 0:01:14]} 24. Nf1 {[%emt 0:02:36]} Qf4 {[%emt 0:01:35]} 25. h3 {[%emt 0:05:14]} f6 {[%emt 0:00:19]} 26. Rd3 {[%emt 0:00:32]} Qc4 {[%emt 0:00:51]} 27. Red1 {[%emt 0:01:24]} Nf5 {[%emt 0:00:11]} 28. Kh1 {[%emt 0:02:57]} e4 {[%emt 0:01:20]} 29. R3d2 {[%emt 0:00:13]} e3 {[%emt 0:00:18]} 30. fxe3 {[%emt 0:00:07]} Bxe3 {[%emt 0:01:21]} 31. Rd3 {[%emt 0:02:46]} Bb6 {[%emt 0:00:38]} 32. Bxf6 {[%emt 0:02:00]} gxf6 {[%emt 0:00:41]} 33. Qxf6 {[%emt 0:00:04]} Ng7 {[%emt 0:01:03]} 34. Rg3 {[%emt 0:00:49]} Rd7 {[%emt 0:00:04]} 35. Rg4 {[%emt 0:01:33]} Qe2 {[%emt 0:01:09]} 36. Rd2 {[%emt 0:00:18]} Qe5 {[%emt 0:00:33]} 0-1

[Event "Vienna Chess Open 2019"]
[Site "Vienna"]
[Date "2019.08.24"]
[Round "9.2"]
[White "Stanec, Nikolaus"]
[Black "Buhmann, Rainer"]
[Result "1/2-1/2"]
[ECO "C68"]
[WhiteElo "2483"]
[BlackElo "2574"]
[Annotator "ChessBase"]
[PlyCount "52"]
[EventDate "2019.08.17"]
[EventType "swiss"]
[EventCountry "AUT"]
[SourceTitle "playchess.com"]
[Source "ChessBase"]
[SourceQuality "1"]
[TimeControl "40/5400+30:1800+30"]

1. e4 e5 2. Nf3 {[%emt 0:00:56]} Nc6 {[%emt 0:00:03]} 3. Bb5 {[%emt 0:00:13]} a6 {[%emt 0:00:37]} 4. Bxc6 {[%emt 0:00:45]} dxc6 {[%emt 0:00:05]} 5. O-O {[%emt 0:00:06]} Bd6 {[%emt 0:00:58]} 6. d4 {[%emt 0:01:25]} exd4 {[%emt 0:00:30]} 7. Qxd4 {[%emt 0:00:11]} f6 {[%emt 0:00:44]} 8. Re1 {[%emt 0:08:57]} Be6 {[%emt 0:22:29]} 9. Nc3 {[%emt 0:02:18]} c5 {[%emt 0:10:01]} 10. Qe3 {[%emt 0:01:30]} Nh6 {[%emt 0:02:49]} 11. e5 {[%emt 0:03:52]} fxe5 {[%emt 0:26:10]} 12. Nxe5 {[%emt 0:00:38]} Nf5 {[%emt 0:04:59]} 13. Qe4 {[%emt 0:03:28]} O-O {[%emt 0:00:44]} 14. Nf3 {[%emt 0:03:11]} Bd7 {[%emt 0:06:11]} 15. Qc4+ {[%emt 0:08:37]} Kh8 {[%emt 0:00:19]} 16. Bg5 {[%emt 0:00:07]} Qc8 {[%emt 0:00:51]} 17. Nd5 {[%emt 0:08:05]} b5 {[%emt 0:04:42]} 18. Qd3 {[%emt 0:01:02]} Bc6 {[%emt 0:04:30]} 19. Ne5 {[%emt 0:07:02]} Bb7 {[%emt 0:01:26]} 20. c4 {[%emt 0:08:47]} Qe8 {[%emt 0:04:03]} 21. Bf4 {[%emt 0:03:06]} Nd4 {[%emt 0:01:05]} 22. Bg3 {[%emt 0:00:32]} Qh5 {[%emt 0:01:12]} 23. b3 {[%emt 0:01:48]} Qf5 {[%emt 0:02:26]} 24. Rad1 {[%emt 0:02:03]} Rad8 {[%emt 0:01:40]} 25. Qxf5 {[%emt 0:02:16]} Nxf5 {[%emt 0:01:41]} 26. Nf3 {[%emt 0:00:40]} Bxg3 {[%emt 0:01:20]} 1/2-1/2

[Event "Vienna Chess Open 2019"]
[Site "Vienna"]
[Date "2019.08.24"]
[Round "9.3"]
[White "Peralta, Fernando"]
[Black "Abdumalik, Zhansaya"]
[Result "1/2-1/2"]
[ECO "D86"]
[WhiteElo "2572"]
[BlackElo "2457"]
[Annotator "ChessBase"]
[PlyCount "61"]
[EventDate "2019.08.17"]
[EventType "swiss"]
[EventCountry "AUT"]
[SourceTitle "playchess.com"]
[Source "ChessBase"]
[SourceQuality "1"]
[TimeControl "40/5400+30:1800+30"]

1. d4 {[%emt 0:00:00]} Nf6 {[%emt 0:00:00]} 2. c4 {[%emt 0:00:00]} g6 {[%emt 0:00:00]} 3. Nc3 {[%emt 0:00:07]} d5 {[%emt 0:00:00]} 4. cxd5 {[%emt 0:00:15]} Nxd5 {[%emt 0:00:01]} 5. e4 {[%emt 0:00:03]} Nxc3 {[%emt 0:00:07]} 6. bxc3 {[%emt 0:00:03]} Bg7 {[%emt 0:00:08]} 7. Bc4 {[%emt 0:00:13]} c5 {[%emt 0:01:08]} 8. Ne2 {[%emt 0:00:05]} Nc6 {[%emt 0:00:18]} 9. Be3 {[%emt 0:00:10]} O-O {[%emt 0:00:40]} 10. O-O {[%emt 0:00:04]} Bg4 {[%emt 0:00:06]} 11. f3 {[%emt 0:00:21]} Bd7 {[%emt 0:00:07]} 12. Rb1 {[%emt 0:00:30]} Qc7 {[%emt 0:06:48]} 13. Bd3 {[%emt 0:01:57]} Rfd8 {[%emt 0:05:45]} 14. Qd2 {[%emt 0:11:28]} Be8 {[%emt 0:06:32]} 15. Rfc1 {[%emt 0:00:49]} e6 {[%emt 0:01:26]} 16. Bg5 {[%emt 0:06:52]} Rd7 {[%emt 0:04:17]} 17. f4 {[%emt 0:01:23]} a6 {[%emt 0:15:34]} 18. e5 {[%emt 0:07:19]} Qa5 {[%emt 0:01:25]} 19. Qe3 {[%emt 0:08:35]} Qa4 {[%emt 0:09:11]} 20. dxc5 {[%emt 0:27:27]} h6 {[%emt 0:07:37]} 21. Bf6 {[%emt 0:02:22]} Bf8 {[%emt 0:01:18]} 22. Ng3 {[%emt 0:03:13]} Ne7 {[%emt 0:01:48]} 23. Ne4 {[%emt 0:07:43]} Nd5 {[%emt 0:03:11]} 24. Qf2 {[%emt 0:02:30]} Rc7 {[%emt 0:03:41]} 25. Kh1 {[%emt 0:02:48]} Qa5 {[%emt 0:04:58]} 26. Bh4 {[%emt 0:07:31]} Bxc5 {[%emt 0:01:27]} 27. Nxc5 {[%emt 0:00:07]} Qxc5 {[%emt 0:01:00]} 28. Qd2 {[%emt 0:03:36]} Qe3 {[%emt 0:04:07]} 29. Qxe3 {[%emt 0:00:18]} Nxe3 {[%emt 0:00:05]} 30. Be4 {[%emt 0:00:13]} Nd5 {[%emt 0:02:35]} 31. Bxd5 {[%emt 0:01:19]} 1/2-1/2

[Event "Vienna Chess Open 2019"]
[Site "Vienna"]
[Date "2019.08.24"]
[Round "9.3"]
[White "Miedema, David"]
[Black "Bauer, Thomas"]
[Result "1-0"]
[ECO "A70"]
[WhiteElo "2371"]
[BlackElo "2184"]
[Annotator "ChessBase"]
[PlyCount "115"]
[EventDate "2019.08.17"]
[EventType "swiss"]
[EventCountry "AUT"]
[SourceTitle "playchess.com"]
[Source "ChessBase"]
[SourceQuality "1"]
[TimeControl "40/5400+30:1800+30"]

1. d4 {[%emt 0:01:47]} Nf6 {[%emt 0:00:00]} 2. c4 {[%emt 0:00:04]} c5 {[%emt 0:00:00]} 3. d5 {[%emt 0:00:05]} e6 {[%emt 0:00:00]} 4. Nc3 {[%emt 0:00:05]} exd5 {[%emt 0:00:02]} 5. cxd5 {[%emt 0:00:06]} d6 {[%emt 0:00:02]} 6. e4 {[%emt 0:00:12]} g6 {[%emt 0:00:04]} 7. Nf3 {[%emt 0:00:04]} Bg7 {[%emt 0:00:03]} 8. h3 {[%emt 0:00:06]} O-O {[%emt 0:00:31]} 9. Be3 {[%emt 0:00:05]} Re8 {[%emt 0:04:50]} 10. Nd2 {[%emt 0:00:33]} b6 {[%emt 0:02:21]} 11. Bb5 {[%emt 0:07:51]} Re7 {[%emt 0:01:58]} 12. a4 {[%emt 0:01:09]} Na6 {[%emt 0:00:17]} 13. O-O {[%emt 0:02:16]} Nb4 {[%emt 0:00:02]} 14. Re1 {[%emt 0:03:45]} h6 {[%emt 0:10:11]} 15. Ra3 {[%emt 0:13:15]} Kh7 {[%emt 0:02:00]} 16. Qb1 {[%emt 0:00:24]} Rb8 {[%emt 0:09:55]} 17. Bf1 {[%emt 0:02:34]} a6 {[%emt 0:05:21]} 18. Na2 {[%emt 0:25:33]} Nfxd5 {[%emt 0:11:59]} 19. exd5 {[%emt 0:00:29]} Bf5 {[%emt 0:00:02]} 20. Nxb4 {[%emt 0:00:55]} Bxb1 {[%emt 0:11:08]} 21. Nc6 {[%emt 0:00:05]} Qe8 {[%emt 0:02:34]} 22. Rxb1 {[%emt 0:00:07]} b5 {[%emt 0:01:36]} 23. Nxe7 {[%emt 0:02:40]} Qxe7 {[%emt 0:00:48]} 24. axb5 {[%emt 0:00:03]} axb5 {[%emt 0:00:17]} 25. Bf4 {[%emt 0:07:21]} Bd4 {[%emt 0:05:16]} 26. Ra6 {[%emt 0:04:12]} Qf6 {[%emt 0:03:12]} 27. Bg3 {[%emt 0:00:15]} Qg5 {[%emt 0:06:25]} 28. Ne4 {[%emt 0:00:43]} Qxd5 {[%emt 0:01:15]} 29. Nxd6 {[%emt 0:00:07]} c4 {[%emt 0:02:19]} 30. Be2 {[%emt 0:02:44]} Qe6 {[%emt 0:05:04]} 31. Bf3 {[%emt 0:01:31]} Bb6 {[%emt 0:06:20]} 32. Rba1 {[%emt 0:04:37]} Qf6 {[%emt 0:04:41]} 33. Ne4 {[%emt 0:00:22]} Qd8 {[%emt 0:01:01]} 34. Bxb8 {[%emt 0:00:17]} Qxb8 {[%emt 0:00:03]} 35. Nf6+ {[%emt 0:00:36]} Kg7 {[%emt 0:00:27]} 36. Nd7 {[%emt 0:00:03]} Bxf2+ {[%emt 0:00:11]} 37. Kxf2 {[%emt 0:00:05]} Qf4 {[%emt 0:00:04]} 38. Rd1 {[%emt 0:00:20]} b4 {[%emt 0:00:31]} 39. Rad6 {[%emt 0:02:02]} Qf5 {[%emt 0:00:40]} 40. R6d4 {[%emt 0:00:40]} c3 {[%emt 0:02:25]} 41. bxc3 {[%emt 0:30:18]} Qc2+ {[%emt 0:31:03]} 42. Kf1 {[%emt 0:00:26]} bxc3 {[%emt 0:00:00]} 43. Ne5 {[%emt 0:00:00]} Qb2 {[%emt 0:00:00]} 44. Nd3 {[%emt 0:00:00]} Qb5 {[%emt 0:00:00]} 45. Rd5 {[%emt 0:00:00]} Qb3 {[%emt 0:00:00]} 46. Rc1 {[%emt 0:00:00]} g5 {[%emt 0:00:00]} 47. Rc5 {[%emt 0:00:00]} c2 {[%emt 0:00:00]} 48. Nf2 {[%emt 0:00:00]} f5 {[%emt 0:00:00]} 49. R1xc2 {[%emt 0:00:00]} g4 {[%emt 0:00:00]} 50. hxg4 {[%emt 0:00:00]} fxg4 {[%emt 0:00:00]} 51. Nxg4 {[%emt 0:00:00]} h5 {[%emt 0:00:00]} 52. Rc7+ {[%emt 0:00:00]} Kg6 {[%emt 0:00:00]} 53. Nf2 {[%emt 0:00:00]} Kg5 {[%emt 0:00:00]} 54. R2c5+ {[%emt 0:00:00]} Kf4 {[%emt 0:00:00]} 55. Rb7 {[%emt 0:00:00]} Qa2 {[%emt 0:00:00]} 56. Rb4+ {[%emt 0:00:00]} Kg3 {[%emt 0:00:00]} 57. Nh1+ {[%emt 0:00:00]} Kh2 58. Rxh5# {[%emt 0:00:00]} 1-0

[Event "Vienna Chess Open 2019"]
[Site "Vienna"]
[Date "2019.08.24"]
[Round "9.4"]
[White "Janik, Igor"]
[Black "Morgunov, Marc"]
[Result "1-0"]
[ECO "B51"]
[WhiteElo "2483"]
[BlackElo "2345"]
[Annotator "ChessBase"]
[PlyCount "77"]
[EventDate "2019.08.17"]
[EventType "swiss"]
[EventCountry "AUT"]
[SourceTitle "playchess.com"]
[Source "ChessBase"]
[SourceQuality "1"]
[TimeControl "40/5400+30:1800+30"]

1. e4 {[%emt 0:00:00]} c5 {[%emt 0:00:00]} 2. Nf3 {[%emt 0:00:00]} d6 {[%emt 0:00:00]} 3. Bb5+ {[%emt 0:00:00]} Nc6 {[%emt 0:01:38]} 4. O-O {[%emt 0:00:01]} Nf6 {[%emt 0:02:00]} 5. e5 {[%emt 0:03:05]} dxe5 {[%emt 0:01:10]} 6. Nxe5 {[%emt 0:00:32]} Bd7 {[%emt 0:01:25]} 7. Bxc6 {[%emt 0:00:07]} Bxc6 {[%emt 0:00:15]} 8. Nxc6 {[%emt 0:00:08]} bxc6 {[%emt 0:00:04]} 9. d3 {[%emt 0:00:36]} e6 {[%emt 0:00:58]} 10. Nd2 {[%emt 0:00:12]} Be7 {[%emt 0:02:18]} 11. b3 {[%emt 0:01:09]} O-O {[%emt 0:00:21]} 12. Bb2 {[%emt 0:00:28]} Nd5 {[%emt 0:10:03]} 13. Re1 {[%emt 0:00:21]} Bf6 {[%emt 0:06:14]} 14. Qc1 {[%emt 0:00:39]} Re8 {[%emt 0:10:33]} 15. Nc4 {[%emt 0:03:03]} Bd4 {[%emt 0:12:47]} 16. Ne5 {[%emt 0:12:05]} f6 {[%emt 0:09:47]} 17. Nf3 {[%emt 0:02:09]} Bxb2 {[%emt 0:00:13]} 18. Qxb2 {[%emt 0:00:02]} e5 {[%emt 0:00:19]} 19. Re4 {[%emt 0:01:07]} Qd6 {[%emt 0:03:50]} 20. Rae1 {[%emt 0:05:27]} Nb6 {[%emt 0:04:20]} 21. Nd2 {[%emt 0:02:18]} Nd7 {[%emt 0:03:22]} 22. Nc4 {[%emt 0:01:42]} Qd5 {[%emt 0:01:13]} 23. Qc3 {[%emt 0:05:25]} Re7 {[%emt 0:05:36]} 24. Qa5 {[%emt 0:03:31]} f5 {[%emt 0:08:02]} 25. R4e2 {[%emt 0:01:39]} e4 {[%emt 0:04:10]} 26. dxe4 {[%emt 0:00:49]} Rxe4 {[%emt 0:01:51]} 27. Rxe4 {[%emt 0:00:19]} fxe4 {[%emt 0:00:04]} 28. Qc7 {[%emt 0:02:13]} Nf6 {[%emt 0:04:11]} 29. h3 {[%emt 0:02:11]} Qe6 {[%emt 0:03:35]} 30. Qb7 {[%emt 0:01:17]} Rf8 {[%emt 0:01:04]} 31. Qxa7 {[%emt 0:00:28]} Nd7 {[%emt 0:01:32]} 32. Qc7 {[%emt 0:01:25]} Qf5 {[%emt 0:00:26]} 33. Qg3 {[%emt 0:00:38]} Nf6 {[%emt 0:00:07]} 34. Qe5 {[%emt 0:00:46]} Qxe5 {[%emt 0:01:12]} 35. Nxe5 {[%emt 0:00:06]} Rc8 {[%emt 0:00:05]} 36. a4 {[%emt 0:00:39]} Kf8 {[%emt 0:00:18]} 37. Kf1 {[%emt 0:00:47]} Ke7 {[%emt 0:00:21]} 38. Ng4 {[%emt 0:00:06]} Re8 {[%emt 0:00:26]} 39. f3 {[%emt 0:00:24]} 1-0

[Event "Vienna Chess Open 2019"]
[Site "Vienna"]
[Date "2019.08.24"]
[Round "9.5"]
[White "Nasuta, Grzegorz"]
[Black "Handler, Lukas"]
[Result "1-0"]
[ECO "B90"]
[WhiteElo "2533"]
[BlackElo "2411"]
[Annotator "ChessBase"]
[PlyCount "71"]
[EventDate "2019.08.17"]
[EventType "swiss"]
[EventCountry "AUT"]
[SourceTitle "playchess.com"]
[Source "ChessBase"]
[SourceQuality "1"]
[TimeControl "40/5400+30:1800+30"]

1. e4 {[%emt 0:06:41]} c5 {[%emt 0:00:00]} 2. Nf3 {[%emt 0:00:06]} d6 {[%emt 0:00:00]} 3. d4 {[%emt 0:00:05]} cxd4 {[%emt 0:00:00]} 4. Nxd4 {[%emt 0:00:04]} Nf6 {[%emt 0:00:02]} 5. Nc3 {[%emt 0:00:05]} a6 {[%emt 0:00:24]} 6. h3 {[%emt 0:00:06]} e6 {[%emt 0:06:45]} 7. g4 {[%emt 0:00:07]} b5 {[%emt 0:01:34]} 8. Bg2 {[%emt 0:01:18]} Bb7 {[%emt 0:00:43]} 9. O-O {[%emt 0:00:29]} b4 {[%emt 0:08:32]} 10. Nd5 {[%emt 0:01:19]} exd5 {[%emt 0:04:49]} 11. exd5 {[%emt 0:00:07]} Be7 {[%emt 0:05:15]} 12. g5 {[%emt 0:02:40]} O-O {[%emt 0:21:08]} 13. gxf6 {[%emt 0:38:43]} Bxf6 {[%emt 0:00:11]} 14. Bf4 {[%emt 0:07:58]} Be5 {[%emt 0:11:09]} 15. Qd2 {[%emt 0:00:54]} a5 {[%emt 0:05:18]} 16. a3 {[%emt 0:12:18]} Qf6 {[%emt 0:03:03]} 17. Bxe5 {[%emt 0:00:33]} dxe5 {[%emt 0:01:37]} 18. Nb3 {[%emt 0:00:07]} Qb6 {[%emt 0:05:11]} 19. axb4 {[%emt 0:08:50]} axb4 {[%emt 0:00:05]} 20. Qe3 {[%emt 0:01:07]} Nd7 {[%emt 0:03:37]} 21. Na5 {[%emt 0:00:09]} Qxe3 {[%emt 0:08:11]} 22. fxe3 {[%emt 0:00:08]} Ba6 {[%emt 0:00:14]} 23. Rfd1 {[%emt 0:03:37]} f5 {[%emt 0:02:27]} 24. b3 {[%emt 0:03:22]} Be2 {[%emt 0:05:16]} 25. Re1 {[%emt 0:01:16]} Bh5 {[%emt 0:01:22]} 26. Nc6 {[%emt 0:05:54]} Rae8 {[%emt 0:02:46]} 27. Ra7 {[%emt 0:00:38]} Rf7 {[%emt 0:00:26]} 28. Nxb4 {[%emt 0:00:54]} g5 {[%emt 0:00:23]} 29. d6 {[%emt 0:01:45]} e4 {[%emt 0:00:58]} 30. Nc6 {[%emt 0:00:10]} Nb6 {[%emt 0:01:13]} 31. Ra5 {[%emt 0:01:43]} Nc8 {[%emt 0:00:36]} 32. Rd5 {[%emt 0:01:51]} Rd7 {[%emt 0:00:17]} 33. Rxf5 {[%emt 0:00:08]} Nxd6 {[%emt 0:00:52]} 34. Rxg5+ {[%emt 0:00:12]} Bg6 {[%emt 0:00:02]} 35. Rd1 {[%emt 0:00:39]} Re6 {[%emt 0:01:32]} 36. Rgd5 {[%emt 0:00:56]} 1-0